[Event "Titled Tuesday Blitz July 6 2021"]
[White "Maly, Alexey"]
[Black "Yandarbiev, Ruslan"]
[WhiteFideId "14103184"]
[BlackFideId "4115023"]
[WhiteElo "2285"]
[BlackElo "2114"]
[Result "1-0"]
[Round "03"]
[TimeControl "180+1"]
[Date "2021.07.06"]
[WhiteClock "0:02:21"]
[BlackClock "0:01:22"]

1. d4 {[%clk 0:03:00]}  Nf6 {[%clk 0:02:59]} 2. c4 {[%clk 0:03:00]}  g6 {[%clk 0:03:00]} 3. Nc3 {[%clk 0:02:59]}  Bg7 {[%clk 0:03:01]} 4. e4 {[%clk 0:02:56]}  O-O {[%clk 0:03:02]} 5. Be2 {[%clk 0:02:52]}  d6 {[%clk 0:03:02]} 6. Nf3 {[%clk 0:02:52]}  e5 {[%clk 0:02:56]} 7. O-O {[%clk 0:02:52]}  Nc6 {[%clk 0:02:56]} 8. d5 {[%clk 0:02:52]}  Ne7 {[%clk 0:02:56]} 9. Ne1 {[%clk 0:02:52]}  Nd7 {[%clk 0:02:57]} 10. Be3 {[%clk 0:02:52]}  f5 {[%clk 0:02:58]} 11. f3 {[%clk 0:02:52]}  f4 {[%clk 0:02:58]} 12. Bf2 {[%clk 0:02:52]}  g5 {[%clk 0:02:58]} 13. a4 {[%clk 0:02:52]}  Rf6 {[%clk 0:02:55]} 14. g4 {[%clk 0:02:51]}  h5 {[%clk 0:02:47]} 15. h3 {[%clk 0:02:51]}  a6 {[%clk 0:02:46]} 16. Kg2 {[%clk 0:02:46]}  Rh6 {[%clk 0:02:46]} 17. Rh1 {[%clk 0:02:45]}  Ng6 {[%clk 0:02:46]} 18. Nd3 {[%clk 0:02:44]}  b6 {[%clk 0:02:15]} 19. a5 {[%clk 0:02:42]}  Nh4+ {[%clk 0:02:14]} 20. Bxh4 {[%clk 0:02:40]}  gxh4 {[%clk 0:02:14]} 21. Nb4 {[%clk 0:02:35]}  hxg4 {[%clk 0:02:03]} 22. hxg4 {[%clk 0:02:34]}  Nf6 {[%clk 0:01:46]} 23. Nc6 {[%clk 0:02:32]}  Qe8 {[%clk 0:01:45]} 24. axb6 {[%clk 0:02:28]}  cxb6 {[%clk 0:01:44]} 25. Qb3 {[%clk 0:02:22]}  Qg6 {[%clk 0:01:22]} 26. Ne7+ {[%clk 0:02:21]} 1-0


[Site "https://www.chess.com"]

[Event "Titled Tuesday Blitz July 6 2021"]
[White "Mezentsev, Ivan"]
[Black "Zhigalko, Sergei"]
[WhiteFideId "13706195"]
[BlackFideId "13502956"]
[WhiteElo "2295"]
[BlackElo "2662"]
[Result "0-1"]
[Round "03"]
[TimeControl "180+1"]
[Date "2021.07.06"]
[WhiteClock "0:00:01"]
[BlackClock "0:00:02"]

1. d4 {[%clk 0:03:00]}  Nf6 {[%clk 0:03:00]} 2. Nf3 {[%clk 0:03:00]}  e6 {[%clk 0:03:00]} 3. Bf4 {[%clk 0:02:59]}  b6 {[%clk 0:02:59]} 4. e3 {[%clk 0:02:57]}  Bb7 {[%clk 0:02:59]} 5. h3 {[%clk 0:02:56]}  Bd6 {[%clk 0:03:00]} 6. Bxd6 {[%clk 0:02:55]}  cxd6 {[%clk 0:03:00]} 7. a4 {[%clk 0:02:51]}  Nc6 {[%clk 0:02:55]} 8. Be2 {[%clk 0:02:48]}  O-O {[%clk 0:02:55]} 9. O-O {[%clk 0:02:48]}  Qc7 {[%clk 0:02:53]} 10. c3 {[%clk 0:02:45]}  Rfe8 {[%clk 0:02:47]} 11. Nbd2 {[%clk 0:02:42]}  e5 {[%clk 0:02:47]} 12. Nc4 {[%clk 0:02:34]}  e4 {[%clk 0:02:34]} 13. Nfd2 {[%clk 0:02:16]}  Ne7 {[%clk 0:02:31]} 14. a5 {[%clk 0:02:01]}  b5 {[%clk 0:02:26]} 15. a6 {[%clk 0:01:59]}  Bc6 {[%clk 0:02:21]} 16. Na3 {[%clk 0:01:54]}  Rab8 {[%clk 0:02:21]} 17. Nc2 {[%clk 0:01:47]}  Nf5 {[%clk 0:02:14]} 18. Nb4 {[%clk 0:01:34]}  d5 {[%clk 0:02:10]} 19. Re1 {[%clk 0:01:27]}  g6 {[%clk 0:02:07]} 20. Nb3 {[%clk 0:01:23]}  h5 {[%clk 0:02:04]} 21. Nc5 {[%clk 0:01:14]}  Kg7 {[%clk 0:01:57]} 22. Qd2 {[%clk 0:01:01]}  g5 {[%clk 0:01:34]} 23. f3 {[%clk 0:00:49]}  Qg3 {[%clk 0:00:33]} 24. Rf1 {[%clk 0:00:44]}  Nh4 {[%clk 0:00:28]} 25. Rf2 {[%clk 0:00:44]}  exf3 {[%clk 0:00:18]} 26. Bxf3 {[%clk 0:00:42]}  g4 {[%clk 0:00:19]} 27. Nxd7 {[%clk 0:00:05]}  Bxd7 {[%clk 0:00:10]} 28. Bxd5 {[%clk 0:00:04]}  Nxd5 {[%clk 0:00:02]} 29. Nxd5 {[%clk 0:00:03]}  gxh3 {[%clk 0:00:03]} 30. Nf4 {[%clk 0:00:03]}  Qg4 {[%clk 0:00:02]} 31. Kh2 {[%clk 0:00:01]}  hxg2 {[%clk 0:00:02]} 0-1


[Site "https://www.chess.com"]

[Event "Titled Tuesday Blitz July 6 2021"]
[White "Moroni, Luca Jr"]
[Black "pooh2012"]
[WhiteFideId "865834"]
[WhiteElo "2491"]
[BlackElo "2488"]
[Result "1-0"]
[Round "03"]
[TimeControl "180+1"]
[Date "2021.07.06"]
[WhiteClock "0:00:26"]
[BlackClock "0:00:03"]

1. d4 {[%clk 0:03:00]}  Nf6 {[%clk 0:02:58]} 2. c4 {[%clk 0:02:59]}  e6 {[%clk 0:02:57]} 3. Nc3 {[%clk 0:02:59]}  Bb4 {[%clk 0:02:55]} 4. Nf3 {[%clk 0:02:59]}  O-O {[%clk 0:02:54]} 5. Bg5 {[%clk 0:02:58]}  c5 {[%clk 0:02:35]} 6. e3 {[%clk 0:02:49]}  cxd4 {[%clk 0:02:26]} 7. exd4 {[%clk 0:02:47]}  d5 {[%clk 0:01:55]} 8. c5 {[%clk 0:02:33]}  Qa5 {[%clk 0:01:33]} 9. Bd2 {[%clk 0:02:23]}  Ne4 {[%clk 0:01:22]} 10. Qc2 {[%clk 0:02:05]}  Nxd2 {[%clk 0:01:07]} 11. Nxd2 {[%clk 0:02:06]}  e5 {[%clk 0:00:59]} 12. Nb3 {[%clk 0:02:02]}  Qc7 {[%clk 0:00:54]} 13. a3 {[%clk 0:01:56]}  Bxc3+ {[%clk 0:00:53]} 14. bxc3 {[%clk 0:01:56]}  Nc6 {[%clk 0:00:53]} 15. Be2 {[%clk 0:01:54]}  Re8 {[%clk 0:00:50]} 16. O-O {[%clk 0:01:53]}  b6 {[%clk 0:00:48]} 17. Bb5 {[%clk 0:01:40]}  Bd7 {[%clk 0:00:46]} 18. a4 {[%clk 0:01:25]}  exd4 {[%clk 0:00:34]} 19. cxd4 {[%clk 0:01:23]}  Nb4 {[%clk 0:00:31]} 20. Qd2 {[%clk 0:01:20]}  Nc6 {[%clk 0:00:22]} 21. Rfc1 {[%clk 0:01:10]}  a6 {[%clk 0:00:22]} 22. Bxc6 {[%clk 0:01:06]}  Bxc6 {[%clk 0:00:23]} 23. cxb6 {[%clk 0:01:03]}  Qxb6 {[%clk 0:00:24]} 24. Nc5 {[%clk 0:01:03]}  a5 {[%clk 0:00:22]} 25. Rab1 {[%clk 0:01:02]}  Qd8 {[%clk 0:00:22]} 26. Re1 {[%clk 0:01:01]}  Qf6 {[%clk 0:00:15]} 27. Rxe8+ {[%clk 0:00:57]}  Rxe8 {[%clk 0:00:15]} 28. h3 {[%clk 0:00:57]}  g6 {[%clk 0:00:15]} 29. Rb6 {[%clk 0:00:55]}  Rc8 {[%clk 0:00:08]} 30. Qe3 {[%clk 0:00:46]}  Qd8 {[%clk 0:00:07]} 31. Rb1 {[%clk 0:00:43]}  Rb8 {[%clk 0:00:06]} 32. Rxb8 {[%clk 0:00:39]}  Qxb8 {[%clk 0:00:07]} 33. Qe7 {[%clk 0:00:35]}  Qb4 {[%clk 0:00:07]} 34. Qd8+ {[%clk 0:00:30]}  Kg7 {[%clk 0:00:07]} 35. Qe7 {[%clk 0:00:28]}  Bxa4 {[%clk 0:00:03]} 36. Ne6+ {[%clk 0:00:26]} 1-0


[Site "https://www.chess.com"]

[Event "Titled Tuesday Blitz July 6 2021"]
[White "Nitish Belurkar"]
[Black "Yakubboev, Nodirbek"]
[WhiteFideId "5084768"]
[BlackFideId "14203987"]
[WhiteElo "2306"]
[BlackElo "2519"]
[Result "1/2-1/2"]
[Round "03"]
[TimeControl "180+1"]
[Date "2021.07.06"]
[WhiteClock "0:00:10"]
[BlackClock "0:00:05"]

1. d4 {[%clk 0:03:00]}  Nf6 {[%clk 0:02:56]} 2. Nf3 {[%clk 0:03:01]}  g6 {[%clk 0:02:56]} 3. Bg5 {[%clk 0:02:57]}  Bg7 {[%clk 0:02:56]} 4. Nbd2 {[%clk 0:02:58]}  d5 {[%clk 0:02:53]} 5. Bxf6 {[%clk 0:02:57]}  Bxf6 {[%clk 0:02:45]} 6. e4 {[%clk 0:02:56]}  dxe4 {[%clk 0:02:43]} 7. Nxe4 {[%clk 0:02:57]}  Bg7 {[%clk 0:02:42]} 8. c3 {[%clk 0:02:58]}  Nd7 {[%clk 0:02:33]} 9. Bc4 {[%clk 0:02:57]}  Nf6 {[%clk 0:02:27]} 10. Qe2 {[%clk 0:02:57]}  O-O {[%clk 0:02:25]} 11. O-O {[%clk 0:02:56]}  Nd5 {[%clk 0:02:18]} 12. Rfe1 {[%clk 0:02:44]}  c6 {[%clk 0:02:11]} 13. Rad1 {[%clk 0:02:41]}  Bg4 {[%clk 0:01:51]} 14. h3 {[%clk 0:02:29]}  Bxf3 {[%clk 0:01:50]} 15. Qxf3 {[%clk 0:02:27]}  e6 {[%clk 0:01:50]} 16. Re2 {[%clk 0:02:21]}  Qc7 {[%clk 0:01:46]} 17. g3 {[%clk 0:02:20]}  a5 {[%clk 0:01:43]} 18. h4 {[%clk 0:02:20]}  h5 {[%clk 0:01:43]} 19. a3 {[%clk 0:02:05]}  b5 {[%clk 0:01:39]} 20. Bxd5 {[%clk 0:01:58]}  cxd5 {[%clk 0:01:38]} 21. Nf6+ {[%clk 0:01:58]}  Bxf6 {[%clk 0:01:31]} 22. Qxf6 {[%clk 0:01:59]}  Qd8 {[%clk 0:01:25]} 23. Qf3 {[%clk 0:01:52]}  Kg7 {[%clk 0:01:23]} 24. Re5 {[%clk 0:01:51]}  Qf6 {[%clk 0:01:23]} 25. Qe2 {[%clk 0:01:29]}  Rfb8 {[%clk 0:01:17]} 26. Rd3 {[%clk 0:01:28]}  Rb7 {[%clk 0:00:53]} 27. Rf3 {[%clk 0:01:19]}  Qe7 {[%clk 0:00:51]} 28. Rfe3 {[%clk 0:01:07]}  Qd8 {[%clk 0:00:42]} 29. Kg2 {[%clk 0:00:36]}  Rc8 {[%clk 0:00:39]} 30. g4 {[%clk 0:00:36]}  Qxh4 {[%clk 0:00:28]} 31. gxh5 {[%clk 0:00:35]}  Rh8 {[%clk 0:00:28]} 32. Rh3 {[%clk 0:00:31]}  Qf6 {[%clk 0:00:25]} 33. Rf3 {[%clk 0:00:30]}  Qh4 {[%clk 0:00:23]} 34. Rh3 {[%clk 0:00:23]}  Qf4 {[%clk 0:00:16]} 35. Rg3 {[%clk 0:00:18]}  Rh6 {[%clk 0:00:12]} 36. Reg5 {[%clk 0:00:14]}  Qf6 {[%clk 0:00:07]} 37. hxg6 {[%clk 0:00:11]}  Rxg6 {[%clk 0:00:07]} 38. Rxg6+ {[%clk 0:00:11]}  fxg6 {[%clk 0:00:08]} 39. Rf3 {[%clk 0:00:10]}  Qg5+ {[%clk 0:00:08]} 40. Rg3 {[%clk 0:00:10]}  Qf5 {[%clk 0:00:08]} 41. Rf3 {[%clk 0:00:11]}  Qg4+ {[%clk 0:00:08]} 42. Kf1 {[%clk 0:00:11]}  Qe4 {[%clk 0:00:06]} 43. Qxe4 {[%clk 0:00:11]}  dxe4 {[%clk 0:00:07]} 44. Re3 {[%clk 0:00:12]}  b4 {[%clk 0:00:07]} 45. axb4 {[%clk 0:00:13]}  axb4 {[%clk 0:00:08]} 46. Rxe4 {[%clk 0:00:13]}  bxc3 {[%clk 0:00:08]} 47. bxc3 {[%clk 0:00:14]}  Rc7 {[%clk 0:00:08]} 48. Re3 {[%clk 0:00:13]}  Kf6 {[%clk 0:00:08]} 49. Ke2 {[%clk 0:00:14]}  g5 {[%clk 0:00:08]} 50. Kd3 {[%clk 0:00:14]}  Rb7 {[%clk 0:00:09]} 51. Rf3+ {[%clk 0:00:14]}  Ke7 {[%clk 0:00:08]} 52. Ke4 {[%clk 0:00:14]}  Rc7 {[%clk 0:00:07]} 53. Rg3 {[%clk 0:00:14]}  Kf6 {[%clk 0:00:07]} 54. Rf3+ {[%clk 0:00:14]}  Ke7 {[%clk 0:00:07]} 55. Kd3 {[%clk 0:00:14]}  Ra7 {[%clk 0:00:06]} 56. c4 {[%clk 0:00:15]}  Ra3+ {[%clk 0:00:06]} 57. Ke4 {[%clk 0:00:15]}  Ra2 {[%clk 0:00:06]} 58. Rg3 {[%clk 0:00:12]}  Kf6 {[%clk 0:00:05]} 59. Rf3+ {[%clk 0:00:10]}  Ke7 {[%clk 0:00:05]} 60. Ke3 {[%clk 0:00:09]}  Ra3+ {[%clk 0:00:05]} 61. Ke4 {[%clk 0:00:10]}  Ra2 {[%clk 0:00:05]} 1/2-1/2


[Site "https://www.chess.com"]

[Event "Titled Tuesday Blitz July 6 2021"]
[White "Obregon, Andres Carlos"]
[Black "Harutjunyan, Gevorg"]
[WhiteFideId "111724"]
[BlackFideId "13300873"]
[WhiteElo "2572"]
[BlackElo "2498"]
[Result "1-0"]
[Round "03"]
[TimeControl "180+1"]
[Date "2021.07.06"]
[WhiteClock "0:00:49"]
[BlackClock "0:01:07"]

1. d4 {[%clk 0:03:00]}  d5 {[%clk 0:02:59]} 2. Bf4 {[%clk 0:03:00]}  Nf6 {[%clk 0:02:58]} 3. e3 {[%clk 0:03:00]}  c5 {[%clk 0:02:59]} 4. Nd2 {[%clk 0:03:00]}  Nc6 {[%clk 0:02:58]} 5. c3 {[%clk 0:03:00]}  Qb6 {[%clk 0:02:51]} 6. Qb3 {[%clk 0:03:00]}  c4 {[%clk 0:02:47]} 7. Qc2 {[%clk 0:03:00]}  g6 {[%clk 0:02:45]} 8. e4 {[%clk 0:03:00]}  dxe4 {[%clk 0:02:42]} 9. Nxc4 {[%clk 0:02:52]}  Qd8 {[%clk 0:02:40]} 10. Ne2 {[%clk 0:02:50]}  Bg7 {[%clk 0:02:38]} 11. Ng3 {[%clk 0:02:47]}  O-O {[%clk 0:02:37]} 12. Nxe4 {[%clk 0:02:41]}  Nd5 {[%clk 0:02:34]} 13. Bd2 {[%clk 0:02:35]}  b5 {[%clk 0:02:33]} 14. Ne3 {[%clk 0:02:33]}  b4 {[%clk 0:02:33]} 15. Bc4 {[%clk 0:02:22]}  Nb6 {[%clk 0:02:32]} 16. Bb5 {[%clk 0:02:20]}  bxc3 {[%clk 0:02:30]} 17. bxc3 {[%clk 0:02:19]}  Bb7 {[%clk 0:02:27]} 18. Nc5 {[%clk 0:02:11]}  Qc7 {[%clk 0:02:22]} 19. O-O {[%clk 0:01:52]}  Rac8 {[%clk 0:02:22]} 20. Rac1 {[%clk 0:01:50]}  Ba8 {[%clk 0:02:22]} 21. Qb3 {[%clk 0:01:21]}  Rcd8 {[%clk 0:02:20]} 22. Rfd1 {[%clk 0:01:20]}  e5 {[%clk 0:02:20]} 23. Na6 {[%clk 0:01:20]}  Qe7 {[%clk 0:02:12]} 24. d5 {[%clk 0:01:18]}  Na5 {[%clk 0:01:49]} 25. Qb4 {[%clk 0:01:17]}  Qxb4 {[%clk 0:01:37]} 26. cxb4 {[%clk 0:01:18]}  Nb7 {[%clk 0:01:37]} 27. Nc7 {[%clk 0:01:13]}  Nd6 {[%clk 0:01:34]} 28. Bc6 {[%clk 0:01:12]}  Bxc6 {[%clk 0:01:33]} 29. dxc6 {[%clk 0:01:12]}  Ne4 {[%clk 0:01:32]} 30. Be1 {[%clk 0:01:12]}  f5 {[%clk 0:01:25]} 31. Ne6 {[%clk 0:01:05]}  Rxd1 {[%clk 0:01:25]} 32. Rxd1 {[%clk 0:01:06]}  Rc8 {[%clk 0:01:26]} 33. Nxg7 {[%clk 0:01:04]}  Kxg7 {[%clk 0:01:27]} 34. b5 {[%clk 0:01:05]}  Kf7 {[%clk 0:01:21]} 35. f3 {[%clk 0:01:03]}  Nf6 {[%clk 0:01:17]} 36. Bc3 {[%clk 0:01:02]}  Ke6 {[%clk 0:01:17]} 37. Bb4 {[%clk 0:00:58]}  Nbd5 {[%clk 0:01:16]} 38. Bc5 {[%clk 0:00:56]}  Rb8 {[%clk 0:01:12]} 39. a4 {[%clk 0:00:55]}  Ra8 {[%clk 0:01:04]} 40. Nc4 {[%clk 0:00:51]}  e4 {[%clk 0:01:04]} 41. fxe4 {[%clk 0:00:51]}  fxe4 {[%clk 0:01:04]} 42. h3 {[%clk 0:00:49]}  Nc3 {[%clk 0:01:04]} 43. Rd6+ {[%clk 0:00:49]}  Kf5 {[%clk 0:01:05]} 44. Rxf6+ {[%clk 0:00:47]}  Kxf6 {[%clk 0:01:05]} 45. Bd4+ {[%clk 0:00:48]}  Ke6 {[%clk 0:01:06]} 46. Bxc3 {[%clk 0:00:48]}  Kd5 {[%clk 0:01:07]} 47. Ne3+ {[%clk 0:00:49]} 1-0


[Site "https://www.chess.com"]

[Event "Titled Tuesday Blitz July 6 2021"]
[White "Ortiz Verdezoto, Anahi"]
[Black "Yanchenko, Roman"]
[WhiteFideId "3614581"]
[BlackFideId "4137329"]
[WhiteElo "1755"]
[BlackElo "2514"]
[Result "0-1"]
[Round "03"]
[TimeControl "180+1"]
[Date "2021.07.06"]
[WhiteClock "0:00:21"]
[BlackClock "0:00:16"]

1. d4 {[%clk 0:03:00]}  d5 {[%clk 0:02:57]} 2. c4 {[%clk 0:03:00]}  c6 {[%clk 0:02:57]} 3. cxd5 {[%clk 0:03:00]}  cxd5 {[%clk 0:02:57]} 4. Bf4 {[%clk 0:03:00]}  Nc6 {[%clk 0:02:58]} 5. e3 {[%clk 0:03:00]}  Bf5 {[%clk 0:02:58]} 6. Nc3 {[%clk 0:02:59]}  e6 {[%clk 0:02:58]} 7. Nf3 {[%clk 0:02:59]}  Qb6 {[%clk 0:02:56]} 8. Qd2 {[%clk 0:02:58]}  Nf6 {[%clk 0:02:55]} 9. Be2 {[%clk 0:02:53]}  Ne4 {[%clk 0:02:56]} 10. Qc1 {[%clk 0:02:46]}  Nxc3 {[%clk 0:02:37]} 11. bxc3 {[%clk 0:02:44]}  Qa5 {[%clk 0:02:38]} 12. O-O {[%clk 0:02:43]}  Ba3 {[%clk 0:02:38]} 13. Qd2 {[%clk 0:02:40]}  Rc8 {[%clk 0:02:31]} 14. c4 {[%clk 0:02:24]}  Bb4 {[%clk 0:02:24]} 15. Qd1 {[%clk 0:02:20]}  Bc3 {[%clk 0:02:22]} 16. c5 {[%clk 0:02:13]}  Bxa1 {[%clk 0:02:18]} 17. Qxa1 {[%clk 0:02:13]}  b6 {[%clk 0:02:17]} 18. Rc1 {[%clk 0:02:12]}  O-O {[%clk 0:02:16]} 19. Bd6 {[%clk 0:02:11]}  Rfd8 {[%clk 0:02:15]} 20. a4 {[%clk 0:01:42]}  Bg4 {[%clk 0:02:10]} 21. h3 {[%clk 0:01:39]}  Bh5 {[%clk 0:02:05]} 22. g4 {[%clk 0:01:39]}  Bg6 {[%clk 0:02:06]} 23. h4 {[%clk 0:01:34]}  f6 {[%clk 0:02:03]} 24. g5 {[%clk 0:01:33]}  Be4 {[%clk 0:02:00]} 25. Ne1 {[%clk 0:01:25]}  Nb4 {[%clk 0:01:51]} 26. f3 {[%clk 0:01:18]}  Bg6 {[%clk 0:01:49]} 27. Kf2 {[%clk 0:01:18]}  Kf7 {[%clk 0:01:46]} 28. Bb5 {[%clk 0:01:04]}  a6 {[%clk 0:01:34]} 29. Be2 {[%clk 0:01:04]}  h5 {[%clk 0:01:24]} 30. gxh6 {[%clk 0:01:01]}  gxh6 {[%clk 0:01:24]} 31. Qa3 {[%clk 0:01:02]}  b5 {[%clk 0:00:50]} 32. Bf4 {[%clk 0:01:00]}  Qxa4 {[%clk 0:00:46]} 33. Qxa4 {[%clk 0:01:00]}  bxa4 {[%clk 0:00:47]} 34. Bxh6 {[%clk 0:01:00]}  a3 {[%clk 0:00:46]} 35. Rc3 {[%clk 0:00:55]}  a2 {[%clk 0:00:42]} 36. Ra3 {[%clk 0:00:55]}  Bb1 {[%clk 0:00:38]} 37. Bf4 {[%clk 0:00:47]}  e5 {[%clk 0:00:37]} 38. dxe5 {[%clk 0:00:46]}  Rxc5 {[%clk 0:00:37]} 39. exf6 {[%clk 0:00:44]}  Nc6 {[%clk 0:00:22]} 40. Rxa6 {[%clk 0:00:26]}  Ra5 {[%clk 0:00:17]} 41. Rxa5 {[%clk 0:00:24]}  Nxa5 {[%clk 0:00:14]} 42. Be5 {[%clk 0:00:24]}  d4 {[%clk 0:00:14]} 43. Bxd4 {[%clk 0:00:20]}  Rxd4 {[%clk 0:00:14]} 44. exd4 {[%clk 0:00:21]}  a1=Q {[%clk 0:00:14]} 45. Ke3 {[%clk 0:00:21]}  Qc3+ {[%clk 0:00:14]} 46. Nd3 {[%clk 0:00:21]}  Bxd3 {[%clk 0:00:14]} 47. Bxd3 {[%clk 0:00:21]}  Kxf6 {[%clk 0:00:14]} 48. Ke4 {[%clk 0:00:21]}  Nb3 {[%clk 0:00:15]} 49. d5 {[%clk 0:00:21]}  Qd4# {[%clk 0:00:16]} 0-1


[Site "https://www.chess.com"]

[Event "Titled Tuesday Blitz July 6 2021"]
[White "Pert, Richard G"]
[Black "Rustemov, Alexander"]
[WhiteFideId "404748"]
[BlackFideId "4119002"]
[WhiteElo "2441"]
[BlackElo "2849"]
[Result "0-1"]
[Round "03"]
[TimeControl "180+1"]
[Date "2021.07.06"]
[WhiteClock "0:00:01"]
[BlackClock "0:00:04"]

1. d4 {[%clk 0:03:00]}  d5 {[%clk 0:02:58]} 2. Nf3 {[%clk 0:02:59]}  Nf6 {[%clk 0:02:58]} 3. Bf4 {[%clk 0:03:00]}  e6 {[%clk 0:02:57]} 4. e3 {[%clk 0:03:00]}  Bd6 {[%clk 0:02:57]} 5. Nbd2 {[%clk 0:03:00]}  O-O {[%clk 0:02:55]} 6. Bd3 {[%clk 0:03:00]}  b6 {[%clk 0:02:55]} 7. Qe2 {[%clk 0:02:58]}  c5 {[%clk 0:02:52]} 8. c3 {[%clk 0:02:56]}  Bb7 {[%clk 0:02:41]} 9. O-O {[%clk 0:02:55]}  Nc6 {[%clk 0:02:34]} 10. Ne5 {[%clk 0:02:47]}  Qc7 {[%clk 0:02:33]} 11. Ndf3 {[%clk 0:02:41]}  Ne7 {[%clk 0:02:23]} 12. h3 {[%clk 0:02:37]}  Rac8 {[%clk 0:02:22]} 13. Rad1 {[%clk 0:02:34]}  Ne4 {[%clk 0:02:17]} 14. Bb1 {[%clk 0:02:08]}  Rfd8 {[%clk 0:02:05]} 15. Rfe1 {[%clk 0:02:06]}  f6 {[%clk 0:01:54]} 16. Nd3 {[%clk 0:02:05]}  Ba6 {[%clk 0:01:48]} 17. Bxd6 {[%clk 0:02:00]}  Nxd6 {[%clk 0:01:44]} 18. Qc2 {[%clk 0:01:56]}  Bxd3 {[%clk 0:01:43]} 19. Qxd3 {[%clk 0:01:56]}  g6 {[%clk 0:01:41]} 20. Nd2 {[%clk 0:01:45]}  f5 {[%clk 0:01:40]} 21. Nf3 {[%clk 0:01:45]}  Nc6 {[%clk 0:01:38]} 22. Qe2 {[%clk 0:01:34]}  c4 {[%clk 0:01:36]} 23. Ne5 {[%clk 0:01:29]}  Nxe5 {[%clk 0:01:31]} 24. dxe5 {[%clk 0:01:30]}  Ne4 {[%clk 0:01:32]} 25. f3 {[%clk 0:01:27]}  Nc5 {[%clk 0:01:26]} 26. f4 {[%clk 0:01:27]}  b5 {[%clk 0:01:24]} 27. a3 {[%clk 0:01:25]}  a5 {[%clk 0:01:24]} 28. g4 {[%clk 0:01:23]}  Qb6 {[%clk 0:01:23]} 29. Kh2 {[%clk 0:01:20]}  Ne4 {[%clk 0:01:21]} 30. gxf5 {[%clk 0:01:16]}  exf5 {[%clk 0:01:20]} 31. Rg1 {[%clk 0:01:13]}  b4 {[%clk 0:01:20]} 32. axb4 {[%clk 0:01:13]}  axb4 {[%clk 0:01:20]} 33. Bxe4 {[%clk 0:01:08]}  dxe4 {[%clk 0:01:12]} 34. Rxd8+ {[%clk 0:01:06]}  Qxd8 {[%clk 0:01:12]} 35. Rd1 {[%clk 0:01:05]}  Qb6 {[%clk 0:01:09]} 36. Rd6 {[%clk 0:01:02]}  Qc5 {[%clk 0:01:09]} 37. Qd2 {[%clk 0:01:01]}  Kg7 {[%clk 0:01:09]} 38. Rd7+ {[%clk 0:00:59]}  Kg8 {[%clk 0:01:05]} 39. e6 {[%clk 0:00:57]}  Re8 {[%clk 0:01:01]} 40. Rb7 {[%clk 0:00:42]}  Qc6 {[%clk 0:00:52]} 41. Qd7 {[%clk 0:00:41]}  Qxd7 {[%clk 0:00:52]} 42. exd7 {[%clk 0:00:41]}  Rd8 {[%clk 0:00:52]} 43. cxb4 {[%clk 0:00:40]}  Kf7 {[%clk 0:00:50]} 44. Rc7 {[%clk 0:00:31]}  Ke7 {[%clk 0:00:49]} 45. Kg3 {[%clk 0:00:29]}  Rxd7 {[%clk 0:00:48]} 46. Rxc4 {[%clk 0:00:30]}  Rd3 {[%clk 0:00:37]} 47. Rc3 {[%clk 0:00:28]}  Rd2 {[%clk 0:00:34]} 48. b3 {[%clk 0:00:26]}  Kd6 {[%clk 0:00:32]} 49. b5 {[%clk 0:00:25]}  Rd5 {[%clk 0:00:30]} 50. Rc6+ {[%clk 0:00:23]}  Kd7 {[%clk 0:00:29]} 51. Rb6 {[%clk 0:00:20]}  Kc7 {[%clk 0:00:29]} 52. Rc6+ {[%clk 0:00:20]}  Kb7 {[%clk 0:00:29]} 53. Rf6 {[%clk 0:00:19]}  Rxb5 {[%clk 0:00:28]} 54. Rf7+ {[%clk 0:00:19]}  Kc6 {[%clk 0:00:29]} 55. Rxh7 {[%clk 0:00:19]}  Rxb3 {[%clk 0:00:29]} 56. Rh6 {[%clk 0:00:16]}  Rxe3+ {[%clk 0:00:28]} 57. Kg2 {[%clk 0:00:14]}  Rf3 {[%clk 0:00:27]} 58. Rxg6+ {[%clk 0:00:14]}  Kd5 {[%clk 0:00:27]} 59. h4 {[%clk 0:00:15]}  Rxf4 {[%clk 0:00:27]} 60. Kg3 {[%clk 0:00:15]}  Rf3+ {[%clk 0:00:27]} 61. Kg2 {[%clk 0:00:15]}  Ke5 {[%clk 0:00:25]} 62. h5 {[%clk 0:00:15]}  Rf4 {[%clk 0:00:23]} 63. Kg3 {[%clk 0:00:15]}  Rf1 {[%clk 0:00:23]} 64. Kg2 {[%clk 0:00:15]}  Ra1 {[%clk 0:00:20]} 65. h6 {[%clk 0:00:15]}  Ra7 {[%clk 0:00:17]} 66. Rg7 {[%clk 0:00:14]}  Ra6 {[%clk 0:00:17]} 67. h7 {[%clk 0:00:12]}  Rh6 {[%clk 0:00:17]} 68. Kg3 {[%clk 0:00:12]}  Kf6 {[%clk 0:00:15]} 69. Ra7 {[%clk 0:00:11]}  Kg6 {[%clk 0:00:15]} 70. Kf4 {[%clk 0:00:11]}  Rh4+ {[%clk 0:00:15]} 71. Ke5 {[%clk 0:00:07]}  e3 {[%clk 0:00:15]} 72. Ra3 {[%clk 0:00:05]}  f4 {[%clk 0:00:15]} 73. Ke4 {[%clk 0:00:05]}  Kg5 {[%clk 0:00:15]} 74. Ra1 {[%clk 0:00:05]}  e2 {[%clk 0:00:08]} 75. Kf3 {[%clk 0:00:04]}  Rh2 {[%clk 0:00:08]} 76. Rg1+ {[%clk 0:00:03]}  Kf5 {[%clk 0:00:08]} 77. Re1 {[%clk 0:00:03]}  Rh3+ {[%clk 0:00:06]} 78. Kxe2 {[%clk 0:00:02]}  Rxh7 {[%clk 0:00:05]} 79. Rg1 {[%clk 0:00:01]}  Rh2+ {[%clk 0:00:04]} 0-1


[Site "https://www.chess.com"]